[Event "ESCC Women 65 2019"]
[Site "Halkidik"]
[Date "2019.04.08"]
[Round "3.1"]
[White "Fatalibekova, Elena"]
[Black "Podlovna, Stella"]
[Result "1-0"]
[ECO "D42"]
[WhiteElo "2148"]
[BlackElo "1599"]
[Annotator "NA"]
[PlyCount "42"]
[EventDate "2019.04.06"]
[EventType "swiss"]
[EventCountry "GRE"]
[SourceTitle "playchess.com"]
[Source "ChessBase"]
[SourceQuality "1"]
[TimeControl "40/5400+30:1800+30"]

1. e4 {[%emt 0:00:00]} c6 {[%emt 0:00:13]} 2. d4 {[%emt 0:00:00]} d5 {[%emt 0:00:22]} 3. exd5 {[%emt 0:00:04]} cxd5 {[%emt 0:00:57]} 4. c4 {[%emt 0:00:09]} e6 {[%emt 0:00:54]} 5. Nc3 {[%emt 0:00:09]} Nf6 {[%emt 0:01:40]} 6. Nf3 {[%emt 0:00:06]} Be7 {[%emt 0:02:38]} 7. cxd5 {[%emt 0:00:25]} Nxd5 {[%emt 0:01:03]} 8. Bd3 {[%emt 0:00:12]} Nc6 {[%emt 0:01:32]} 9. O-O {[%emt 0:00:19]} O-O {[%emt 0:01:06]} 10. Re1 {[%emt 0:00:17]} Re8 {[%emt 0:00:53]} 11. a3 {[%emt 0:01:32]} h6 {[%emt 0:01:01]} 12. Bc2 {[%emt 0:03:07]} Nf6 {[%emt 0:08:40]} 13. Qd3 {[%emt 0:01:34]} a6 {[%emt 0:09:18]} 14. Bf4 {[%emt 0:09:58]} b5 {[%emt 0:03:28]} 15. Ne4 {[%emt 0:00:41]} Bb7 $18 {[%emt 0:02:38]} (15... Nd5 $16 16. Nc3) 16. Nxf6+ {[%emt 0:03:12]} Bxf6 {[%emt 0:00:21]} 17. Qh7+ {[%emt 0:00:02]} Kf8 {[%emt 0:00:44]} 18. d5 {[%emt 0:00:25]} Qxd5 {[%emt 0:08:52]} 19. Rad1 {[%emt 0:00:11]} Nd4 {[%emt 0:02:06]} 20. Be4 {[%emt 0:00:18]} Nxf3+ {[%emt 0:01:25]} 21. Bxf3 {[%emt 0:00:01]} Qd7 {[%emt 0:00:42]} 1-0

[Event "ESCC Women 65 2019"]
[Site "Halkidik"]
[Date "2019.04.10"]
[Round "3.4"]
[White "Khmiadashvili, Tamar"]
[Black "Sorokina, Tamara"]
[Result "1-0"]
[ECO "A02"]
[WhiteElo "1976"]
[BlackElo "2051"]
[Annotator "NA RC"]
[PlyCount "123"]
[EventDate "2019.04.06"]
[EventType "swiss"]
[EventCountry "GRE"]
[SourceTitle "playchess.com"]
[Source "ChessBase"]
[SourceQuality "1"]
[TimeControl "40/5400+30:1800+30"]

1. f4 {[%emt 0:00:00]} c5 {[%emt 0:00:00]} 2. Nf3 {[%emt 0:00:00]} Nf6 {[%emt 0:00:09]} 3. e3 {[%emt 0:00:17]} b6 {[%emt 0:01:03]} 4. b3 {[%emt 0:00:57]} Bb7 {[%emt 0:00:23]} 5. Bb2 {[%emt 0:00:16]} e6 {[%emt 0:00:07]} 6. Bd3 {[%emt 0:02:32]} d6 {[%emt 0:02:37]} 7. O-O {[%emt 0:02:30]} Nbd7 {[%emt 0:00:16]} 8. Qe2 {[%emt 0:02:11]} Qc7 {[%emt 0:01:57]} 9. Ba6 {[%emt 0:04:33]} Be7 {[%emt 0:02:21]} 10. Bxb7 {[%emt 0:00:26]} Qxb7 {[%emt 0:00:06]} 11. d3 {[%emt 0:01:37]} d5 {[%emt 0:01:03]} 12. Nbd2 {[%emt 0:02:51]} O-O {[%emt 0:02:56]} 13. Ne5 {[%emt 0:07:33]} Ne8 {[%emt 0:04:00]} 14. Nxd7 {[%emt 0:04:03]} Qxd7 {[%emt 0:00:06]} 15. Nf3 {[%emt 0:02:28]} f6 {[%emt 0:00:38]} 16. c4 {[%emt 0:05:28]} Nc7 $11 {[%emt 0:03:00]} 17. e4 {[%emt 0:06:17]} Rad8 {[%emt 0:03:16]} 18. Rad1 {[%emt 0:05:05]} d4 {[%emt 0:04:22]} 19. Bc1 {[%emt 0:04:21]} Rde8 {[%emt 0:06:17]} 20. g4 {[%emt 0:03:38]} Bd8 {[%emt 0:04:43]} 21. Qg2 {[%emt 0:05:43]} Kh8 {[%emt 0:01:46]} 22. e5 {[%emt 0:02:42]} f5 {[%emt 0:02:46]} 23. h4 {[%emt 0:09:18]} fxg4 {[%emt 0:02:30]} 24. Qxg4 {[%emt 0:01:03]} Rf5 {[%emt 0:00:08]} 25. Nd2 {[%emt 0:07:20]} Ref8 {[%emt 0:01:44]} 26. Ne4 {[%emt 0:00:16]} Ne8 {[%emt 0:00:16]} 27. Ng3 {[%emt 0:01:18]} R5f7 {[%emt 0:00:16]} 28. Rd2 {[%emt 0:03:10]} g6 {[%emt 0:01:22]} 29. Rg2 {[%emt 0:00:38]} Ng7 {[%emt 0:01:30]} 30. h5 {[%emt 0:01:29]} gxh5 {[%emt 0:01:13]} 31. Nxh5 {[%emt 0:02:59]} Nxh5 {[%emt 0:01:49]} 32. Qxh5 {[%emt 0:00:04]} Rg7 {[%emt 0:00:18]} 33. Rff2 {[%emt 0:03:28]} Rfg8 {[%emt 0:00:33]} 34. Kf1 {[%emt 0:01:28]} Qb7 {[%emt 0:01:05]} 35. Rxg7 {[%emt 0:03:18]} Qxg7 {[%emt 0:00:11]} 36. Ke2 {[%emt 0:01:22]} Qg6 {[%emt 0:06:40]} 37. Qxg6 {[%emt 0:01:25]} hxg6 {[%emt 0:00:12]} 38. Kf3 {[%emt 0:02:21]} Kg7 {[%emt 0:00:06]} 39. Rh2 {[%emt 0:00:12]} Rh8 {[%emt 0:00:15]} 40. Rxh8 {[%emt 0:00:00]} Kxh8 {[%emt 0:00:00]} 41. b4 {[%emt 0:02:02]} Kg7 {[%emt 0:00:56]} 42. Bd2 {[%emt 0:15:10]} Kf7 {[%emt 0:02:09]} 43. Kg4 {[%emt 0:01:13]} Kg7 {[%emt 0:06:59]} 44. b5 {[%emt 0:02:10]} Kf7 {[%emt 0:04:24]} 45. Be1 {[%emt 0:00:08]} g5 {[%emt 0:02:51]} 46. f5 {[%emt 0:02:23]} Bc7 {[%emt 0:09:12]} 47. Bg3 {[%emt 0:01:09]} Bd8 {[%emt 0:02:33]} 48. Bh2 {[%emt 0:00:21]} Be7 {[%emt 0:01:29]} 49. Bg3 {[%emt 0:05:00]} Bd8 {[%emt 0:00:58]} 50. a3 {[%emt 0:00:31]} Be7 {[%emt 0:00:38]} 51. f6 {[%emt 0:02:46]} Bd8 {[%emt 0:00:20]} 52. Kxg5 {[%emt 0:00:09]} Bc7 {[%emt 0:00:20]} 53. Kf4 {[%emt 0:00:49]} Bd8 {[%emt 0:01:22]} 54. Ke4 {[%emt 0:00:15]} Bc7 {[%emt 0:00:16]} 55. Bf2 {[%emt 0:01:50]} Bb8 {[%emt 0:01:45]} 56. Bxd4 {[%emt 0:01:13]} cxd4 {[%emt 0:00:07]} 57. Kxd4 {[%emt 0:00:02]} Ke8 {[%emt 0:00:17]} 58. Ke4 {[%emt 0:00:18]} Bc7 {[%emt 0:00:55]} 59. d4 {[%emt 0:00:08]} Kd7 {[%emt 0:01:02]} 60. d5 {[%emt 0:00:20]} Bd8 {[%emt 0:00:15]} 61. a4 {[%emt 0:00:20]} Bc7 {[%emt 0:00:33]} 62. d6 {[%emt 0:02:06]} 1-0

[Event "ESCC Women 65 2019"]
[Site "Halkidik"]
[Date "2019.04.09"]
[Round "4.1"]
[White "Podlovna, Stella"]
[Black "Ristoja, Aulikki"]
[Result "0-1"]
[ECO "D11"]
[WhiteElo "1599"]
[BlackElo "1551"]
[Annotator "NA"]
[PlyCount "118"]
[EventDate "2019.04.06"]
[EventType "swiss"]
[EventCountry "GRE"]
[SourceTitle "playchess.com"]
[Source "ChessBase"]
[SourceQuality "1"]
[TimeControl "40/5400+30:1800+30"]

1. d4 {[%emt 0:00:35]} d5 {[%emt 0:00:00]} 2. e3 {[%emt 0:01:25]} Nf6 {[%emt 0:00:38]} 3. c4 {[%emt 0:01:08]} c6 {[%emt 0:00:47]} 4. Nf3 {[%emt 0:00:31]} Bg4 {[%emt 0:01:36]} 5. h3 {[%emt 0:00:24]} Bh5 {[%emt 0:00:43]} 6. Nbd2 {[%emt 0:02:03]} e6 {[%emt 0:00:44]} 7. Bd3 {[%emt 0:01:00]} Bd6 {[%emt 0:04:56]} 8. c5 {[%emt 0:00:27]} Bc7 {[%emt 0:01:13]} 9. b4 {[%emt 0:00:31]} b6 {[%emt 0:01:18]} 10. Qb3 {[%emt 0:01:29]} bxc5 {[%emt 0:01:23]} 11. bxc5 {[%emt 0:00:35]} Qc8 {[%emt 0:05:17]} 12. Rb1 {[%emt 0:02:57]} O-O {[%emt 0:02:09]} 13. Qb7 {[%emt 0:01:32]} Qxb7 {[%emt 0:01:00]} 14. Rxb7 {[%emt 0:00:10]} Rc8 {[%emt 0:01:30]} 15. Ba3 {[%emt 0:02:35]} Nbd7 {[%emt 0:05:03]} 16. O-O {[%emt 0:01:22]} e5 {[%emt 0:00:38]} 17. dxe5 {[%emt 0:01:48]} Nxe5 {[%emt 0:00:23]} 18. Bf5 {[%emt 0:02:20]} a5 {[%emt 0:08:40]} 19. Bxc8 {[%emt 0:00:22]} Rxc8 {[%emt 0:00:03]} 20. Nd4 {[%emt 0:07:54]} Ne4 {[%emt 0:05:01]} 21. N2f3 {[%emt 0:04:32]} Nc4 {[%emt 0:03:35]} 22. Bc1 {[%emt 0:10:57]} Nxc5 {[%emt 0:00:36]} 23. Nxc6 {[%emt 0:12:04]} Bd6 {[%emt 0:01:12]} 24. Ne7+ {[%emt 0:01:57]} Bxe7 {[%emt 0:00:09]} 25. Rxe7 {[%emt 0:00:09]} Kf8 {[%emt 0:01:12]} 26. Ra7 {[%emt 0:00:22]} f6 {[%emt 0:02:46]} 27. g4 {[%emt 0:02:52]} Bf7 {[%emt 0:00:38]} 28. Nd2 {[%emt 0:00:37]} Nd3 {[%emt 0:01:04]} 29. Nxc4 {[%emt 0:01:25]} dxc4 {[%emt 0:03:45]} 30. Ba3+ {[%emt 0:01:42]} Kg8 {[%emt 0:00:50]} 31. Rxa5 {[%emt 0:01:30]} c3 {[%emt 0:00:47]} 32. Bc1 {[%emt 0:00:16]} h5 {[%emt 0:02:08]} 33. gxh5 {[%emt 0:03:15]} c2 {[%emt 0:01:14]} 34. a4 {[%emt 0:03:13]} Bc4 {[%emt 0:01:25]} 35. Kg2 {[%emt 0:00:58]} Ne5 {[%emt 0:03:01]} 36. Re1 {[%emt 0:01:45]} Nd3 {[%emt 0:04:29]} 37. Rg1 {[%emt 0:00:21]} Ne5 {[%emt 0:02:16]} 38. f4 {[%emt 0:01:57]} Nd3 {[%emt 0:01:13]} 39. Kf3 {[%emt 0:01:02]} Nc5 {[%emt 0:03:42]} 40. Ra7 {[%emt 0:00:00]} Bd5+ {[%emt 0:00:00]} 41. Kf2 {[%emt 0:06:43]} Bf7 {[%emt 0:07:31]} 42. h6 {[%emt 0:01:35]} g6 {[%emt 0:00:47]} 43. f5 {[%emt 0:01:23]} g5 {[%emt 0:02:15]} 44. h4 {[%emt 0:00:45]} Rd8 {[%emt 0:01:41]} 45. hxg5 {[%emt 0:09:32]} Ne4+ {[%emt 0:00:38]} 46. Kf3 {[%emt 0:02:05]} Nxg5+ {[%emt 0:00:31]} 47. Kg4 {[%emt 0:01:26]} Rd1 {[%emt 0:00:44]} 48. Rg2 {[%emt 0:03:51]} Rxc1 {[%emt 0:00:25]} 49. a5 {[%emt 0:00:54]} Bb3 {[%emt 0:01:33]} 50. Rg7+ {[%emt 0:09:44]} Kh8 {[%emt 0:01:12]} 51. Rd2 {[%emt 0:01:32]} Rd1 {[%emt 0:03:42]} 52. Rxc2 {[%emt 0:00:06]} Bxc2 {[%emt 0:00:02]} 53. a6 {[%emt 0:00:34]} Rg1+ {[%emt 0:02:00]} 54. Kf4 {[%emt 0:00:29]} Rf1+ {[%emt 0:00:27]} 55. Kg3 {[%emt 0:00:11]} Rxf5 {[%emt 0:00:33]} 56. a7 {[%emt 0:00:06]} Ra5 {[%emt 0:00:05]} 57. Rd7 {[%emt 0:00:50]} Be4 {[%emt 0:01:02]} 58. Kf4 {[%emt 0:01:00]} Bc6 {[%emt 0:03:54]} 59. Rc7 {[%emt 0:00:49]} Ne6+ {[%emt 0:00:08]} 0-1

[Event "ESCC Women 65 2019"]
[Site "Halkidik"]
[Date "2019.04.09"]
[Round "4.2"]
[White "Sorokina, Tamara"]
[Black "Kabanova, Irina"]
[Result "1-0"]
[ECO "D05"]
[WhiteElo "2051"]
[BlackElo "1816"]
[Annotator "NA"]
[PlyCount "105"]
[EventDate "2019.04.06"]
[EventType "swiss"]
[EventCountry "GRE"]
[SourceTitle "playchess.com"]
[Source "ChessBase"]
[SourceQuality "1"]
[TimeControl "40/5400+30:1800+30"]

1. d4 {[%emt 0:00:00]} Nf6 {[%emt 0:00:00]} 2. Nf3 {[%emt 0:00:00]} e6 {[%emt 0:00:00]} 3. e3 {[%emt 0:00:00]} d5 {[%emt 0:00:54]} 4. Bd3 {[%emt 0:00:00]} Be7 {[%emt 0:00:28]} 5. Nbd2 {[%emt 0:00:00]} c5 {[%emt 0:00:42]} 6. c3 {[%emt 0:00:21]} Nc6 {[%emt 0:00:45]} 7. O-O {[%emt 0:00:07]} Qc7 {[%emt 0:00:33]} 8. dxc5 {[%emt 0:01:41] D05: Colle System with ...e6} Bxc5 {[%emt 0:00:50]} 9. e4 {[%emt 0:00:13]} (9. b4 Be7 10. Bb2 O-O 11. a3 a6 12. c4 dxc4 13. Nxc4 b5 14. Ncd2 Bb7 15. Rc1 Rac8 {0-1 (47) Cifuentes Parada,R (2469)-Ibarra Jerez,J (2561) La Roda 2016}) 9... dxe4 {[%emt 0:06:23]} 10. Nxe4 {[%emt 0:00:02]} Nxe4 {[%emt 0:01:57]} 11. Bxe4 {[%emt 0:00:03]} Bd6 {[%emt 0:02:10]} 12. Qe2 {[%emt 0:00:31]} Bd7 {[%emt 0:04:46]} 13. Rd1 $146 {[%emt 0:06:50]} ({Predecessor:} 13. Be3 O-O-O 14. Nd4 Ne5 15. c4 f5 {1-0 (24) Ravi,T (2387)-Pradip,G (2121) Noida 2016}) 13... Rd8 {[%emt 0:03:57]} 14. Bc2 {[%emt 0:03:29]} h6 {[%emt 0:01:27]} 15. h3 {[%emt 0:00:17]} a6 {[%emt 0:01:18]} 16. Be3 {[%emt 0:01:04]} Ne7 {[%emt 0:11:00]} 17. Bd4 {[%emt 0:07:01]} Bb5 {[%emt 0:03:02]} 18. Bd3 {[%emt 0:00:36]} Bxd3 {[%emt 0:00:41]} 19. Rxd3 {[%emt 0:00:11]} Nf5 {[%emt 0:01:52]} 20. Rad1 {[%emt 0:00:35]} Nxd4 {[%emt 0:00:50]} 21. Nxd4 {[%emt 0:00:19]} O-O {[%emt 0:11:55]} 22. Qe4 {[%emt 0:07:40]} Qe7 {[%emt 0:03:03]} 23. Re1 {[%emt 0:05:12]} g6 {[%emt 0:04:02]} 24. Nf3 {[%emt 0:00:00]} Qf6 {[%emt 0:02:25]} 25. Red1 {[%emt 0:01:59]} Bc7 {[%emt 0:01:14]} 26. Qxb7 {[%emt 0:05:06]} Rxd3 {[%emt 0:02:10]} 27. Rxd3 {[%emt 0:00:07]} Rd8 {[%emt 0:01:56]} 28. Qe4 {[%emt 0:02:39]} Rxd3 {[%emt 0:00:24]} 29. Qxd3 {[%emt 0:00:01]} Qf4 {[%emt 0:03:13]} 30. Qd2 $16 {[%emt 0:02:37]} ({Much weaker is} 30. Qxa6 $6 Qc1+ {[%mdl 64] Double Attack} 31. Qf1 Qxb2 $11) 30... Qe4 {[%emt 0:00:00]} 31. Qd1 {[%emt 0:00:27]} Bb6 {[%emt 0:01:59]} 32. b3 {[%emt 0:02:29]} g5 {[%emt 0:02:44]} 33. a4 {[%emt 0:04:55]} e5 {[%emt 0:04:43]} 34. b4 {[%emt 0:00:06]} Qf4 {[%emt 0:00:31]} 35. Qd2 {[%emt 0:02:33]} Qf5 {[%emt 0:00:26]} 36. a5 {[%emt 0:01:01]} Bc7 {[%emt 0:03:01]} 37. Qe2 {[%emt 0:06:06]} e4 {[%emt 0:00:00]} 38. Nd4 {[%emt 0:04:52]} Qf4 {[%emt 0:00:04]} 39. g3 {[%emt 0:00:11]} Qc1+ {[%emt 0:01:03]} 40. Kg2 {[%emt 0:00:00]} Qxc3 {[%emt 0:00:00]} 41. Qxe4 {[%emt 0:00:23]} Qxb4 {[%emt 0:03:53]} 42. Qe8+ {[%emt 0:00:26]} Qf8 {[%emt 0:00:39]} 43. Qc6 {[%emt 0:00:12]} Qd8 {[%emt 0:00:51]} 44. Nf5 {[%emt 0:00:45]} Be5 {[%emt 0:09:44]} 45. Nxh6+ {[%emt 0:00:31]} Kf8 {[%emt 0:01:53]} 46. Qc5+ {[%emt 0:05:11]} Bd6 {[%emt 0:02:04]} 47. Qd5 {[%emt 0:00:00]} Qe7 {[%emt 0:00:24]} 48. Nxf7 {[%emt 0:00:00]} Qxf7 {[%emt 0:00:18]} 49. Qxd6+ {[%emt 0:00:00]} Kg7 {[%emt 0:00:31]} 50. Qxa6 {[%emt 0:04:58]} Qd5+ {[%emt 0:05:09]} 51. Kh2 {[%emt 0:00:00]} Qf3 {[%emt 0:00:07]} 52. Qb6 {[%emt 0:00:00]} g4 {[%emt 0:00:22]} 53. h4 {[%emt 0:00:00]} 1-0

[Event "ESCC Women 65 2019"]
[Site "Halkidik"]
[Date "2019.04.09"]
[Round "4.3"]
[White "Titorenko, Natalia I"]
[Black "Khmiadashvili, Tamar"]
[Result "1/2-1/2"]
[ECO "B15"]
[WhiteElo "2153"]
[BlackElo "1976"]
[Annotator "NA"]
[PlyCount "122"]
[EventDate "2019.04.06"]
[EventType "swiss"]
[EventCountry "GRE"]
[SourceTitle "playchess.com"]
[Source "ChessBase"]
[SourceQuality "1"]
[TimeControl "40/5400+30:1800+30"]

1. e4 {[%emt 0:00:00]} c6 {[%emt 0:00:11]} 2. Nc3 {[%emt 0:00:00]} d5 {[%emt 0:00:40]} 3. Nf3 {[%emt 0:00:00]} dxe4 {[%emt 0:02:33]} 4. Nxe4 {[%emt 0:00:00]} Nf6 {[%emt 0:00:09]} 5. Nxf6+ {[%emt 0:02:20]} exf6 {[%emt 0:00:37]} 6. d4 {[%emt 0:03:48]} Bd6 {[%emt 0:01:50]} 7. Be3 {[%emt 0:05:08]} O-O {[%emt 0:04:12]} 8. Bd3 $11 {[%emt 0:03:49]} Re8 {[%emt 0:04:45]} 9. Qd2 {[%emt 0:03:32]} Nd7 {[%emt 0:03:25]} 10. O-O {[%emt 0:09:57]} Nf8 {[%emt 0:01:20]} 11. Nh4 {[%emt 0:19:29]} Ng6 {[%emt 0:06:45]} 12. Nxg6 {[%emt 0:07:28]} hxg6 {[%emt 0:04:30]} 13. Rfe1 {[%emt 0:10:31]} Qc7 {[%emt 0:03:14]} 14. g3 {[%emt 0:01:25]} Bh3 {[%emt 0:06:57]} 15. Bf1 {[%emt 0:01:02]} Bxf1 {[%emt 0:00:27]} 16. Kxf1 {[%emt 0:00:22]} g5 {[%emt 0:02:50]} 17. c3 {[%emt 0:02:27]} Qd7 {[%emt 0:01:31]} 18. Kg2 {[%emt 0:01:59]} Qf5 {[%emt 0:01:25]} 19. h3 {[%emt 0:14:23]} Qd5+ {[%emt 0:07:13]} 20. f3 {[%emt 0:00:37]} Bc7 {[%emt 0:03:52]} 21. b3 {[%emt 0:00:32]} Qd6 {[%emt 0:12:48]} 22. Bf2 {[%emt 0:00:07]} Re6 {[%emt 0:04:38]} 23. Re2 {[%emt 0:04:08]} g6 {[%emt 0:01:48]} 24. Rae1 {[%emt 0:00:23]} Kg7 {[%emt 0:02:21]} 25. Rxe6 {[%emt 0:04:43]} fxe6 {[%emt 0:00:06]} 26. Qe3 {[%emt 0:03:19]} Re8 {[%emt 0:03:03]} 27. Rh1 {[%emt 0:00:33]} Rh8 {[%emt 0:00:54]} 28. h4 {[%emt 0:00:32]} gxh4 {[%emt 0:01:47]} 29. gxh4 {[%emt 0:00:10]} Kf7 {[%emt 0:02:36]} 30. Qe1 {[%emt 0:00:34]} Qa3 {[%emt 0:02:56]} 31. Qd2 {[%emt 0:00:01]} Qd6 {[%emt 0:00:41]} 32. Qe1 {[%emt 0:00:01]} Rh5 {[%emt 0:00:58]} 33. Bg3 {[%emt 0:00:14]} Qxg3+ {[%emt 0:01:19]} 34. Qxg3 {[%emt 0:00:01]} Bxg3 {[%emt 0:00:10]} 35. Kxg3 {[%emt 0:00:01]} c5 {[%emt 0:02:01]} 36. dxc5 {[%emt 0:01:08]} Rxc5 {[%emt 0:00:19]} 37. c4 {[%emt 0:00:14]} e5 {[%emt 0:04:35]} 38. h5 {[%emt 0:01:34]} gxh5 {[%emt 0:01:26]} 39. Rxh5 {[%emt 0:00:01]} Kg6 {[%emt 0:01:35]} 40. Rh2 {[%emt 0:00:00]} Rc7 {[%emt 0:00:00]} 41. Kf2 {[%emt 0:02:16]} a5 {[%emt 0:02:32]} 42. Ke3 {[%emt 0:03:38]} a4 {[%emt 0:03:34]} 43. Rc2 {[%emt 0:02:02]} axb3 {[%emt 0:02:48]} 44. axb3 {[%emt 0:00:00]} Kf5 {[%emt 0:01:12]} 45. b4 {[%emt 0:16:36]} Ke6 {[%emt 0:08:16]} 46. f4 {[%emt 0:03:06]} Rh7 {[%emt 0:03:36]} 47. fxe5 {[%emt 0:01:31]} Kxe5 {[%emt 0:00:24]} 48. Rf2 {[%emt 0:01:17]} f5 {[%emt 0:04:08]} 49. b5 {[%emt 0:01:53]} b6 {[%emt 0:02:01]} 50. Kd3 {[%emt 0:02:59]} Rh3+ {[%emt 0:01:20]} 51. Kd2 {[%emt 0:01:00]} f4 {[%emt 0:04:06]} 52. Re2+ {[%emt 0:00:28]} Kd4 {[%emt 0:03:01]} 53. Re6 {[%emt 0:00:25]} Rh2+ {[%emt 0:01:18]} 54. Ke1 {[%emt 0:00:03]} Kxc4 {[%emt 0:01:51]} 55. Rxb6 {[%emt 0:00:18]} Kd4 {[%emt 0:00:29]} 56. Re6 {[%emt 0:00:06]} Rb2 {[%emt 0:00:31]} 57. b6 {[%emt 0:00:58]} Kd5 {[%emt 0:00:13]} 58. Re2 {[%emt 0:01:30]} Rxb6 {[%emt 0:00:17]} 59. Kf2 {[%emt 0:00:00]} Rb3 {[%emt 0:00:13]} 60. Re8 {[%emt 0:00:52]} Kd4 {[%emt 0:01:00]} 61. Re7 {[%emt 0:00:37]} Kd5 {[%emt 0:00:46]} 1/2-1/2

[Event "ESCC Women 65 2019"]
[Site "Halkidik"]
[Date "2019.04.09"]
[Round "4.4"]
[White "Sinchurina, Tatiana"]
[Black "Burchardt, Brigitte"]
[Result "1/2-1/2"]
[ECO "B07"]
[WhiteElo "1967"]
[BlackElo "2136"]
[Annotator "NA"]
[PlyCount "51"]
[EventDate "2019.04.06"]
[EventType "swiss"]
[EventCountry "GRE"]
[SourceTitle "playchess.com"]
[Source "ChessBase"]
[SourceQuality "1"]
[TimeControl "40/5400+30:1800+30"]

1. e4 {[%emt 0:00:00]} c5 {[%emt 0:00:00]} 2. Nf3 {[%emt 0:00:00]} d6 {[%emt 0:00:00]} 3. d4 {[%emt 0:00:00]} cxd4 {[%emt 0:00:00]} 4. Nxd4 {[%emt 0:00:02]} Nf6 {[%emt 0:00:00]} 5. Bd3 {[%emt 0:01:06]} Nc6 {[%emt 0:05:02]} 6. c3 {[%emt 0:01:42]} g6 {[%emt 0:01:56]} 7. O-O {[%emt 0:03:12]} Bg7 {[%emt 0:00:04]} 8. Re1 {[%emt 0:01:25]} O-O {[%emt 0:01:05]} 9. Nd2 {[%emt 0:08:51] B07: Pirc Defence: Miscellaneous Systems} Ng4 {[%emt 0:19:09]} 10. Nxc6 $146 {[%emt 0:01:37]} ({Predecessor:} 10. N2f3 Qb6 11. Qe2 Nxd4 12. Nxd4 Bxd4 13. cxd4 Qxd4 14. Rd1 Qe5 15. g3 Qh5 16. h4 Be6 {0-1 (47) Ciolac,G (2430)-Impris,O St Ingbert 1991}) 10... bxc6 {[%emt 0:03:22]} 11. h3 {[%emt 0:02:45]} Ne5 {[%emt 0:05:14]} 12. Nf3 {[%emt 0:00:20]} Nxd3 {[%emt 0:05:30]} 13. Qxd3 {[%emt 0:00:18]} Rb8 {[%emt 0:08:39]} 14. a4 {[%emt 0:03:34]} Qc7 {[%emt 0:03:43]} 15. Ra3 {[%emt 0:01:00]} Rd8 {[%emt 0:02:18]} 16. b4 {[%emt 0:02:56]} c5 {[%emt 0:06:00]} 17. Bd2 {[%emt 0:02:03]} Bb7 {[%emt 0:03:28]} 18. Qe3 {[%emt 0:03:58]} Rbc8 {[%emt 0:00:42]} 19. b5 {[%emt 0:01:00]} e6 {[%emt 0:10:14]} 20. c4 {[%emt 0:06:46]} d5 $11 {[%emt 0:01:10]} 21. cxd5 {[%emt 0:01:23]} exd5 {[%emt 0:00:07]} 22. exd5 {[%emt 0:00:55]} Bxd5 {[%emt 0:01:12]} 23. Bc3 {[%emt 0:03:38]} Bxc3 {[%emt 0:03:00]} 24. Qxc3 {[%emt 0:00:51]} Bxf3 {[%emt 0:02:02]} 25. Qxf3 {[%emt 0:00:15]} Re8 {[%emt 0:02:17]} 26. Rae3 {[%emt 0:01:20]} 1/2-1/2

[Event "ESCC Women 65 2019"]
[Site "Halkidik"]
[Date "2019.04.09"]
[Round "4.5"]
[White "Fatalibekova, Elena"]
[Black "Gaprindashvili, Nona"]
[Result "1-0"]
[ECO "B00"]
[WhiteElo "2148"]
[BlackElo "2294"]
[Annotator "NA"]
[PlyCount "59"]
[EventDate "2019.04.06"]
[EventType "swiss"]
[EventCountry "GRE"]
[SourceTitle "playchess.com"]
[Source "ChessBase"]
[SourceQuality "1"]
[TimeControl "40/5400+30:1800+30"]

1. e4 {[%emt 0:00:00]} b6 {[%emt 0:00:00]} 2. d4 {[%emt 0:00:00]} Bb7 {[%emt 0:00:00]} 3. Bd3 {[%emt 0:00:00]} g6 {[%emt 0:00:00]} 4. Nf3 {[%emt 0:00:18]} Bg7 {[%emt 0:00:06] LiveBook: 66 Games} 5. c4 {[%emt 0:00:15]} (5. O-O d6 6. Re1 e6 7. Nbd2 Nd7 8. c3 Ne7 9. a4 a6 10. Nf1 O-O 11. Ng3 e5 12. h4 d5 13. exd5 exd4 {1-0 (29) Nihal,S (2576)-Adly,A (2626) St Petersburg 2018}) 5... c5 {[%emt 0:00:26]} (5... e6 6. Nc3 Ne7 7. O-O d6 8. Be3 c5 9. d5 e5 10. Ne1 Nd7 11. a4 O-O 12. Nb5 Nc8 13. Qd2 a6 14. Nc3 Ne7 15. Bh6 Bc8 16. Ra3 Bxh6 17. Qxh6 {½-½ (17) Fatalibekova,E (2242)-Gaprindashvili,N (2299) Acqui Terme 2015}) 6. d5 {[%emt 0:00:23] B00: Queen's Fianchetto Defence, Nimzowitsch Defence} e5 $146 {[%emt 0:00:08]} ({Predecessor:} 6... d6 7. Nc3 Nd7 8. O-O Ngf6 9. h3 Qc7 10. Qc2 O-O 11. Bg5 a6 {1-0 (61) Boehm,J (2172)-Steinle,C (2141) Senden 2014}) 7. Nc3 {[%emt 0:00:18]} d6 {[%emt 0:00:26]} 8. O-O {[%emt 0:00:46]} Nh6 {[%emt 0:00:22]} 9. Ng5 {[%emt 0:07:12]} Bc8 {[%emt 0:06:54]} 10. h3 {[%emt 0:02:54]} O-O {[%emt 0:04:37]} 11. f4 {[%emt 0:00:21]} Nd7 {[%emt 0:17:13]} 12. f5 {[%emt 0:00:42]} Kh8 {[%emt 0:09:54]} 13. Qe1 {[%emt 0:04:35]} Nf6 {[%emt 0:16:00]} 14. g4 {[%emt 0:06:41]} Nfg8 {[%emt 0:05:15]} 15. Be3 {[%emt 0:03:01]} a6 {[%emt 0:06:35]} 16. a4 {[%emt 0:01:00]} Bd7 {[%emt 0:00:58]} 17. Qg3 {[%emt 0:02:14]} Qe7 {[%emt 0:03:56]} 18. Rf2 {[%emt 0:01:50]} b5 {[%emt 0:12:39]} 19. cxb5 {[%emt 0:03:50]} axb5 {[%emt 0:00:01]} 20. Bxb5 {[%emt 0:00:13]} ({But not} 20. Nxb5 Rfb8 $18) 20... Bxb5 $18 {[%emt 0:03:24]} 21. Nxb5 {[%emt 0:00:03]} gxf5 {[%emt 0:00:52]} 22. gxf5 {[%emt 0:00:57]} Rfb8 {[%emt 0:06:31]} 23. Rff1 {[%emt 0:00:48]} Nf6 {[%emt 0:00:52]} 24. Qf3 {[%emt 0:00:30]} Nhg8 {[%emt 0:00:42]} 25. Nxd6 {[%emt 0:00:57]} Nh6 {[%emt 0:00:14]} 26. Nb5 {[%emt 0:00:37]} c4 {[%emt 0:00:34]} 27. Qf2 {[%emt 0:08:26]} Nd7 {[%emt 0:03:40]} 28. d6 {[%emt 0:02:24]} Qf8 {[%emt 0:00:10]} 29. Nc7 {[%emt 0:01:24]} Ra5 {[%emt 0:00:09]} 30. Qd2 {[%emt 0:00:12]} 1-0